fUST/lending_fUST_20250925
["ID","MTS","AMOUNT","RATE_DAILY","PERIOD"]
[387525005,1758754259516,-940.88059664,0.00020218,2]
[387525007,1758754259526,-489.18985566,0.00020253,2]
[387525009,1758754259536,-185842.68666381,0.00020271,2]
[387525011,1758754259545,-500.0,0.00020273,2]
[387525013,1758754259556,-340.78967718,0.00020273,2]
[387525015,1758754259568,-500.0,0.00020273,2]
[387525017,1758754259577,-500.0,0.00020273,2]
[387525019,1758754259587,-500.0,0.00020273,2]
[387525021,1758754259596,-500.0,0.00020273,2]
[387525023,1758754259607,-500.0,0.00020273,2]
[387525024,1758754259618,-500.0,0.00020273,2]
[387525026,1758754259627,-500.0,0.00020273,2]
[387525029,1758754259639,-500.0,0.00020273,2]
[387525030,1758754259648,-500.0,0.00020273,2]
[387525033,1758754259658,-500.0,0.00020273,2]
[387525035,1758754259667,-556.70659625,0.00020273,2]
[387525036,1758754259679,-500.0,0.00020273,2]
[387525038,1758754259689,-500.0,0.00020273,2]
[387525040,1758754259698,-500.0,0.00020273,2]
[387525042,1758754259708,-500.0,0.00020273,2]
[387525045,1758754259718,-500.0,0.00020273,2]
[387525047,1758754259728,-500.0,0.00020273,2]
[387525049,1758754259738,-500.0,0.00020273,2]
[387525051,1758754259747,-500.0,0.00020273,2]
[387525052,1758754259756,-500.0,0.00020273,2]
[387525054,1758754259766,-500.48981869,0.00020273,2]
[387525056,1758754259776,-500.0,0.00020273,2]
[387525058,1758754259786,-501.93914469,0.00020273,2]
[387525060,1758754259795,-500.0,0.00020273,2]
[387525062,1758754259806,-501.09363103,0.00020273,2]
[387525064,1758754259815,-500.0,0.00020273,2]
[387525066,1758754259825,-500.0,0.00020273,2]
[387525068,1758754259834,-500.0,0.00020273,2]
[387525070,1758754259843,-500.0,0.00020273,2]
[387525072,1758754259854,-500.0,0.00020273,2]
[387525074,1758754259863,-500.0,0.00020273,2]
[387525076,1758754259873,-500.0,0.00020273,2]
[387525078,1758754259882,-174.83195121,0.00020273,2]
[387525080,1758754259891,-568.98373301,0.00020273,2]
[387525082,1758754259901,-500.0,0.00020273,2]
[387525084,1758754259910,-500.73347338,0.00020273,2]
[387525086,1758754259919,-500.0,0.00020273,2]
[387525088,1758754259929,-500.0,0.00020273,2]
[387525090,1758754259939,-509.3672855,0.00020273,2]
[387525092,1758754259948,-500.0,0.00020273,2]
[387525094,1758754259958,-500.0,0.00020273,2]
[387525096,1758754259967,-500.0,0.00020273,2]
[387525098,1758754259976,-500.0,0.00020273,2]
[387525100,1758754259985,-500.0,0.00020273,2]
[387525102,1758754259995,-500.0,0.00020273,2]
[387525104,1758754260004,-500.0,0.00020273,2]
[387525106,1758754260013,-500.0,0.00020273,2]
[387525108,1758754260023,-500.0,0.00020273,2]
[387525110,1758754260033,-500.0,0.00020273,2]
[387525112,1758754260042,-500.0,0.00020273,2]
[387525114,1758754260052,-500.0,0.00020273,2]
[387525116,1758754260062,-500.0,0.00020273,2]
[387525118,1758754260071,-500.0,0.00020273,2]
[387525120,1758754260081,-203.08840214,0.00020273,2]
[387525122,1758754260090,-501.41992364,0.00020273,2]
[387525124,1758754260100,-500.0,0.00020273,2]
[387525126,1758754260109,-500.0,0.00020273,2]
[387525128,1758754260119,-500.0,0.00020273,2]
[387525130,1758754260128,-500.0,0.00020273,2]
[387525132,1758754260137,-201.50315465,0.00020273,2]
[387525134,1758754260146,-480.0,0.00020273,2]
[387525136,1758754260156,-483.0996624,0.00020273,2]
[387525138,1758754260166,-480.0,0.00020273,2]
[387525140,1758754260175,-480.0,0.00020273,2]
[387525142,1758754260185,-480.0,0.00020273,2]
[387525143,1758754260194,-480.0,0.00020273,2]
[387525145,1758754260204,-480.0,0.00020273,2]
[387525147,1758754260214,-480.0,0.00020273,2]
[387525149,1758754260223,-285.68260509,0.00020273,2]
[387525152,1758754260233,-480.0,0.00020273,2]
[387525153,1758754260242,-480.0,0.00020273,2]
[387525155,1758754260252,-480.0,0.00020273,2]
[387525158,1758754260262,-480.0,0.00020273,2]
[387525159,1758754260271,-480.0,0.00020273,2]
[387525162,1758754260281,-480.0,0.00020273,2]
[387525164,1758754260291,-480.0,0.00020273,2]
[387525165,1758754260301,-735.57,0.00020273,2]
[387525167,1758754260310,-523.78,0.00020273,2]
[387525169,1758754260320,-267.43532276,0.00020273,2]
[387525171,1758754260329,-532.0,0.00020273,2]
[387525173,1758754260339,-480.0,0.00020273,2]
[387525175,1758754260348,-480.0,0.00020273,2]
[387525177,1758754260358,-480.0,0.00020273,2]
[387525179,1758754260367,-480.0,0.00020273,2]
[387525187,1758754260432,-480.0,0.00020273,2]
[387525189,1758754260443,-480.0,0.00020273,2]
[387525191,1758754260452,-480.0,0.00020273,2]
[387525193,1758754260462,-254.79242291,0.00020273,2]
[387525195,1758754260471,-728.49,0.00020273,2]
[387525197,1758754260481,-480.0,0.00020273,2]
[387525199,1758754260491,-480.0,0.00020273,2]
[387525201,1758754260499,-480.0,0.00020273,2]
[387525203,1758754260509,-480.0,0.00020273,2]
[387525205,1758754260518,-480.0,0.00020273,2]
[387525207,1758754260527,-480.0,0.00020273,2]
[387525209,1758754260536,-1009.63,0.00020273,2]
[387525211,1758754260546,-2885.73,0.00020273,2]
[387525213,1758754260555,-480.0,0.00020273,2]
[387525215,1758754260569,-480.0,0.00020273,2]
[387525217,1758754260579,-1455.01,0.00020273,2]
[387525219,1758754260588,-480.0,0.00020273,2]
[387525220,1758754260597,-477.03,0.00020273,2]
[387525222,1758754260608,-1757.16,0.00020273,2]
[387525224,1758754260619,-480.0,0.00020273,2]
[387525226,1758754260628,-1641.21,0.00020273,2]
[387525228,1758754260638,-637.64,0.00020273,2]
[387525230,1758754260647,-1722.63,0.00020273,2]
[387525232,1758754260657,-480.0,0.00020273,2]
[387525234,1758754260668,-944.67,0.00020273,2]
[387525236,1758754260677,-5911.94,0.00020273,2]
[387525238,1758754260686,-660.28,0.00020273,2]
[387525240,1758754260696,-493.81,0.00020273,2]
[387525242,1758754260705,-519.33,0.00020273,2]
[387525244,1758754260715,-480.0,0.00020273,2]
[387525246,1758754260724,-1219.23,0.00020273,2]
[387525248,1758754260734,-480.0,0.00020273,2]
[387525250,1758754260743,-650.19,0.00020273,2]
[387525252,1758754260752,-367.37128725,0.00020273,2]
[387525254,1758754260761,-480.0,0.00020273,2]
[387525256,1758754260771,-480.0,0.00020273,2]
[387525258,1758754260781,-1265.44,0.00020273,2]
[387525260,1758754260790,-628.32,0.00020273,2]
[387525261,1758754260799,-480.0,0.00020273,2]
[387525263,1758754260809,-545.13,0.00020273,2]
[387525265,1758754260818,-480.0,0.00020273,2]
[387525267,1758754260828,-1581.09,0.00020273,2]
[387525269,1758754260837,-3133.48,0.00020273,2]
[387525271,1758754260846,-480.0,0.00020273,2]
[387525273,1758754260856,-1359.8,0.00020273,2]
[387525275,1758754260865,-480.0,0.00020273,2]
[387525277,1758754260874,-480.0,0.00020273,2]
[387525279,1758754260884,-1107.55,0.00020273,2]
[387525281,1758754260893,-607.09,0.00020273,2]
[387525283,1758754260902,-527.80271838,0.00020273,2]
[387525285,1758754260912,-480.0,0.00020273,2]
[387525287,1758754260921,-480.0,0.00020273,2]
[387525289,1758754260930,-480.0,0.00020273,2]
[387525291,1758754260940,-480.0,0.00020273,2]
[387525293,1758754260949,-480.0,0.00020273,2]
[387525295,1758754260959,-1379.5,0.00020273,2]
[387525297,1758754260969,-480.0,0.00020273,2]
[387525299,1758754260978,-220.34,0.00020273,2]
[387525301,1758754260988,-1193.3,0.00020273,2]
[387525303,1758754260997,-480.0,0.00020273,2]
[387525305,1758754261007,-480.0,0.00020273,2]
[387525307,1758754261016,-480.0,0.00020273,2]
[387525309,1758754261025,-480.0,0.00020273,2]
[387525311,1758754261035,-617.62,0.00020273,2]
[387525313,1758754261044,-619.59,0.00020273,2]
[387525315,1758754261053,-480.0,0.00020273,2]
[387525317,1758754261062,-714.64,0.00020273,2]
[387525318,1758754261071,-638.47,0.00020273,2]
[387525320,1758754261081,-575.14,0.00020273,2]
[387525322,1758754261091,-771.56,0.00020273,2]
[387525324,1758754261100,-480.0,0.00020273,2]
[387525326,1758754261110,-578.62,0.00020273,2]
[387525328,1758754261120,-480.0,0.00020273,2]
[387525330,1758754261129,-1587.46,0.00020273,2]
[387525332,1758754261139,-636.7,0.00020273,2]
[387525334,1758754261148,-2076.9,0.00020273,2]
[387525336,1758754261158,-480.0,0.00020273,2]
[387525338,1758754261167,-480.0,0.00020273,2]
[387525340,1758754261176,-480.0,0.00020273,2]
[387525342,1758754261185,-601.23,0.00020273,2]
[387525344,1758754261195,-892.44,0.00020273,2]
[387525346,1758754261204,-1187.23,0.00020273,2]
[387525348,1758754261214,-480.0,0.00020273,2]
[387525350,1758754261224,-1552.27,0.00020273,2]
[387525352,1758754261233,-480.0,0.00020273,2]
[387525354,1758754261243,-480.0,0.00020273,2]
[387525356,1758754261252,-480.0,0.00020273,2]
[387525358,1758754261261,-480.0,0.00020273,2]
[387525360,1758754261271,-480.0,0.00020273,2]
[387525362,1758754261280,-480.0,0.00020273,2]
[387525364,1758754261290,-508.19,0.00020273,2]
[387525366,1758754261299,-480.0,0.00020273,2]
[387525368,1758754261309,-480.0,0.00020273,2]
[387525370,1758754261318,-500.0,0.00020274,2]
[387525372,1758754261327,-500.0,0.00020274,2]
[387525374,1758754261337,-1000.0,0.00020321,2]
[387525376,1758754261347,-1005.63902475,0.00020321,2]
[387525378,1758754261357,-1000.0,0.00020321,2]
[387525380,1758754261366,-1500.0,0.00020368,2]
[387525382,1758754261376,-480.81169604,0.00020368,2]
[387525384,1758754261386,-480.0,0.00020547,2]
[387525386,1758754261395,-466.47718851,0.00020547,2]
[387525388,1758754261405,-480.0,0.00020547,2]
[387525390,1758754261415,-480.0,0.00020547,2]
[387525392,1758754261429,-169.4,0.00020547,2]
[387525394,1758754261443,-480.0,0.00020547,2]
[387525396,1758754261453,-480.0,0.00020547,2]
[387525398,1758754261463,-480.0,0.00020547,2]
[387525400,1758754261473,-480.0,0.00020547,2]
[387525402,1758754261484,-480.0,0.00020547,2]
[387525404,1758754261494,-480.0,0.00020547,2]
[387525406,1758754261503,-480.0,0.00020547,2]
[387525407,1758754261513,-480.0,0.00020547,2]
[387525409,1758754261523,-480.0,0.00020547,2]
[387525411,1758754261533,-735.57,0.00020547,2]
[387525413,1758754261543,-523.78,0.00020547,2]
[387525415,1758754261552,-532.0,0.00020547,2]
[387525417,1758754261565,-480.0,0.00020547,2]
[387525419,1758754261575,-480.0,0.00020547,2]
[387525421,1758754261584,-480.0,0.00020547,2]
[387525423,1758754261594,-480.0,0.00020547,2]
[387525425,1758754261607,-505.13836615,0.00020547,2]
[387525427,1758754261618,-480.0,0.00020547,2]
[387525429,1758754261628,-480.0,0.00020547,2]
[387525431,1758754261642,-728.49,0.00020547,2]
[387525433,1758754261652,-480.0,0.00020547,2]
[387525435,1758754261662,-480.0,0.00020547,2]
[387525437,1758754261672,-480.0,0.00020547,2]
[387525438,1758754261681,-480.0,0.00020547,2]
[387525439,1758754261691,-480.0,0.00020547,2]
[387525440,1758754261700,-480.0,0.00020547,2]
[387525441,1758754261709,-1009.63,0.00020547,2]
[387525442,1758754261719,-2885.73,0.00020547,2]
[387525443,1758754261728,-480.0,0.00020547,2]
[387525444,1758754261737,-480.0,0.00020547,2]
[387525445,1758754261747,-1455.01,0.00020547,2]
[387525446,1758754261756,-480.0,0.00020547,2]
[387525447,1758754261766,-1757.16,0.00020547,2]
[387525448,1758754261775,-211.41,0.00020547,2]
[387525449,1758754261785,-1641.21,0.00020547,2]
[387525450,1758754261795,-637.64,0.00020547,2]
[387525451,1758754261804,-1722.63,0.00020547,2]
[387525452,1758754261813,-480.0,0.00020547,2]
[387525453,1758754261823,-944.67,0.00020547,2]
[387525454,1758754261833,-5911.94,0.00020547,2]
[387525455,1758754261842,-660.28,0.00020547,2]
[387525456,1758754261853,-493.81,0.00020547,2]
[387525457,1758754261862,-519.33,0.00020547,2]
[387525458,1758754261872,-480.0,0.00020547,2]
[387525459,1758754261882,-1219.23,0.00020547,2]
[387525460,1758754261892,-480.0,0.00020547,2]
[387525461,1758754261901,-650.19,0.00020547,2]
[387525462,1758754261910,-193.03,0.00020547,2]
[387525463,1758754261920,-480.0,0.00020547,2]
[387525464,1758754261930,-1265.44,0.00020547,2]
[387525466,1758754261939,-628.32,0.00020547,2]
[387525467,1758754261949,-368.13,0.00020547,2]
[387525469,1758754261959,-545.13,0.00020547,2]
[387525471,1758754261968,-480.0,0.00020547,2]
[387525473,1758754261979,-1581.09,0.00020547,2]
[387525475,1758754261988,-3133.48,0.00020547,2]
[387525477,1758754261998,-480.0,0.00020547,2]
[387525479,1758754262008,-1359.8,0.00020547,2]
[387525481,1758754262018,-480.0,0.00020547,2]
[387525484,1758754262028,-480.0,0.00020547,2]
[387525486,1758754262038,-1107.55,0.00020547,2]
[387525488,1758754262047,-607.09,0.00020547,2]
[387525490,1758754262057,-480.0,0.00020547,2]
[387525492,1758754262067,-480.0,0.00020547,2]
[387525494,1758754262076,-480.0,0.00020547,2]
[387525496,1758754262085,-480.0,0.00020547,2]
[387525498,1758754262095,-591.21,0.00020547,2]
[387525500,1758754262107,-1379.5,0.00020547,2]
[387525502,1758754262117,-480.0,0.00020547,2]
[387525504,1758754262127,-1193.3,0.00020547,2]
[387525506,1758754262136,-480.0,0.00020547,2]
[387525508,1758754262146,-480.0,0.00020547,2]
[387525510,1758754262156,-480.0,0.00020547,2]
[387525512,1758754262166,-480.0,0.00020547,2]
[387525514,1758754262175,-617.62,0.00020547,2]
[387525516,1758754262185,-619.59,0.00020547,2]
[387525517,1758754262194,-480.0,0.00020547,2]
[387525519,1758754262203,-714.64,0.00020547,2]
[387525521,1758754262213,-638.47,0.00020547,2]
[387525523,1758754262223,-575.14,0.00020547,2]
[387525525,1758754262233,-771.56,0.00020547,2]
[387525527,1758754262244,-480.0,0.00020547,2]
[387525529,1758754262254,-578.62,0.00020547,2]
[387525531,1758754262265,-480.0,0.00020547,2]
[387525533,1758754262274,-1587.46,0.00020547,2]
[387525535,1758754262284,-636.7,0.00020547,2]
[387525537,1758754262294,-2076.9,0.00020547,2]
[387525539,1758754262304,-480.0,0.00020547,2]
[387525541,1758754262314,-480.0,0.00020547,2]
[387525543,1758754262324,-480.0,0.00020547,2]
[387525545,1758754262334,-601.23,0.00020547,2]
[387525547,1758754262344,-892.44,0.00020547,2]
[387525549,1758754262355,-480.0,0.00020547,2]
[387525551,1758754262365,-1187.23,0.00020547,2]
[387525553,1758754262375,-1552.27,0.00020547,2]
[387525555,1758754262386,-480.0,0.00020547,2]
[387525557,1758754262396,-480.0,0.00020547,2]
[387525559,1758754262406,-480.0,0.00020547,2]
[387525561,1758754262416,-480.0,0.00020547,2]
[387525563,1758754262426,-480.0,0.00020547,2]
[387525565,1758754262435,-480.0,0.00020547,2]
[387525567,1758754262444,-508.19,0.00020547,2]
[387525569,1758754262454,-480.0,0.00020547,2]
[387525571,1758754262464,-480.0,0.00020547,2]
[387525573,1758754262474,-500.0,0.00020548,2]
[387525575,1758754262484,-500.0,0.00020548,2]
[387525577,1758754262493,-1135.7404333,0.00020568,2]
[387525579,1758754262504,-1500.0,0.00020568,2]
[387525581,1758754262514,-1500.0,0.00020568,2]
[387525590,1758754262597,-1500.0,0.00020568,2]
[387525592,1758754262616,-919.00334178,0.00020568,2]
[387525594,1758754262627,-455.02379375,0.00020568,2]
[387525596,1758754262637,-1500.0,0.00020568,2]
[387525598,1758754262648,-500.0,0.00020568,2]
[387525600,1758754262658,-1009.14873807,0.00020568,2]
[387525602,1758754262669,-1500.0,0.00020568,2]
[387525604,1758754262679,-1500.0,0.00020568,2]
[387525606,1758754262688,-565.45520192,0.00020568,2]
[387525608,1758754262698,-336.46011223,0.00020568,2]
[387525610,1758754262708,-1000.0,0.00020568,2]
[387525612,1758754262717,-406.80822032,0.00020568,2]
[387525614,1758754262727,-904.2961185,0.00020568,2]
[387525616,1758754262737,-1500.0,0.00020568,2]
[387525618,1758754262746,-1500.0,0.00020568,2]
[387525620,1758754262756,-1500.0,0.00020568,2]
[387525622,1758754262766,-772.70811018,0.00020568,2]
[387525624,1758754262775,-680.44453869,0.00020568,2]
[387525626,1758754262785,-1500.0,0.00020568,2]
[387525628,1758754262795,-1176.24628901,0.00020568,2]
[387525630,1758754262805,-1500.0,0.00020568,2]
[387525632,1758754262815,-1500.0,0.00020568,2]
[387525634,1758754262825,-1007.20091411,0.00020568,2]
[387525636,1758754262835,-11779.57524166,0.00020721,2]
[387525638,1758754262844,-5000.0,0.0002082,2]
[387525640,1758754262855,-500.0,0.00020821,2]
[387525642,1758754262864,-1000.0,0.00020821,2]
[387525644,1758754262873,-1000.0,0.00020821,2]
[387525646,1758754262883,-500.0,0.00020821,2]
[387525648,1758754262892,-1000.0,0.00020821,2]
[387525650,1758754262901,-500.0,0.00020821,2]
[387525652,1758754262911,-1000.0,0.00020821,2]
[387525654,1758754262920,-500.0,0.00020821,2]
[387525656,1758754262929,-501.84197014,0.00020821,2]
[387525658,1758754262939,-1000.0,0.00020821,2]
[387525660,1758754262948,-290.77588044,0.00020821,2]
[387525662,1758754262958,-501.16702121,0.00020821,2]
[387525664,1758754262967,-500.0,0.00020821,2]
[387525666,1758754262976,-1000.0,0.00020821,2]
[387525668,1758754262986,-1000.0,0.00020821,2]
[387525670,1758754262995,-1000.0,0.00020821,2]
[387525672,1758754263005,-476.05367128,0.00020821,2]
[387525673,1758754263015,-1000.0,0.00020821,2]
[387525676,1758754263025,-500.0,0.00020821,2]
[387525677,1758754263035,-501.6018424,0.00020821,2]
[387525679,1758754263046,-501.27066792,0.00020821,2]
[387525681,1758754263055,-1000.0,0.00020821,2]
[387525683,1758754263065,-412.02670785,0.00020821,2]
[387525685,1758754263075,-1000.0,0.00020821,2]
[387525687,1758754263085,-1029.37620879,0.00020821,2]
[387525690,1758754263095,-208.76171828,0.00020821,2]
[387525691,1758754263106,-1000.0,0.00020821,2]
[387525693,1758754263115,-509.6002458,0.00020821,2]
[387525695,1758754263125,-500.0,0.00020821,2]
[387525697,1758754263134,-1000.0,0.00020821,2]
[387525699,1758754263144,-1004.04198193,0.00020821,2]
[387525701,1758754263153,-1000.0,0.00020821,2]
[387525703,1758754263162,-1000.0,0.00020821,2]
[387525705,1758754263171,-501.0079376,0.00020821,2]
[387525707,1758754263180,-500.83686526,0.00020821,2]
[387525709,1758754263190,-1003.94153345,0.00020821,2]
[387525711,1758754263199,-1001.02255061,0.00020821,2]
[387525713,1758754263208,-480.0,0.00020821,2]
[387525715,1758754263218,-480.0,0.00020821,2]
[387525717,1758754263227,-480.0,0.00020821,2]
[387525719,1758754263237,-480.0,0.00020821,2]
[387525721,1758754263247,-480.0,0.00020821,2]
[387525723,1758754263256,-480.0,0.00020821,2]
[387525725,1758754263266,-354.68378359,0.00020821,2]
[387525727,1758754263275,-480.0,0.00020821,2]
[387525729,1758754263284,-480.0,0.00020821,2]
[387525731,1758754263294,-480.0,0.00020821,2]
[387525733,1758754263304,-480.0,0.00020821,2]
[387525735,1758754263313,-480.0,0.00020821,2]
[387525737,1758754263323,-735.57,0.00020821,2]
[387525739,1758754263332,-523.78,0.00020821,2]
[387525741,1758754263342,-532.0,0.00020821,2]
[387525743,1758754263352,-480.0,0.00020821,2]
[387525745,1758754263361,-480.0,0.00020821,2]
[387525747,1758754263372,-480.0,0.00020821,2]
[387525749,1758754263381,-480.0,0.00020821,2]
[387525751,1758754263391,-480.0,0.00020821,2]
[387525753,1758754263401,-480.0,0.00020821,2]
[387525755,1758754263411,-728.49,0.00020821,2]
[387525757,1758754263420,-480.0,0.00020821,2]
[387525759,1758754263430,-480.0,0.00020821,2]
[387525761,1758754263440,-397.81417535,0.00020821,2]
[387525763,1758754263453,-480.0,0.00020821,2]
[387525765,1758754263463,-480.0,0.00020821,2]
[387525767,1758754263473,-480.0,0.00020821,2]
[387525769,1758754263483,-1009.63,0.00020821,2]
[387525771,1758754263494,-2885.73,0.00020821,2]
[387525773,1758754263504,-480.0,0.00020821,2]
[387525775,1758754263514,-480.0,0.00020821,2]
[387525777,1758754263523,-1455.01,0.00020821,2]
[387525779,1758754263532,-480.0,0.00020821,2]
[387525781,1758754263542,-1757.16,0.00020821,2]
[387525783,1758754263552,-1641.21,0.00020821,2]
[387525785,1758754263564,-637.64,0.00020821,2]
[387525786,1758754263574,-1722.63,0.00020821,2]
[387525788,1758754263584,-480.0,0.00020821,2]
[387525790,1758754263594,-944.67,0.00020821,2]
[387525792,1758754263606,-5911.94,0.00020821,2]
[387525794,1758754263616,-660.28,0.00020821,2]
[387525796,1758754263627,-493.81,0.00020821,2]
[387525798,1758754263638,-519.33,0.00020821,2]
[387525800,1758754263649,-570.08751414,0.00020821,2]
[387525802,1758754263658,-1219.23,0.00020821,2]
[387525804,1758754263668,-468.84797771,0.00020821,2]
[387525806,1758754263678,-650.19,0.00020821,2]
[387525808,1758754263687,-410.25994638,0.00020821,2]
[387525810,1758754263697,-1265.44,0.00020821,2]
[387525812,1758754263707,-628.32,0.00020821,2]
[387525814,1758754263717,-545.13,0.00020821,2]
[387525816,1758754263727,-480.0,0.00020821,2]
[387525818,1758754263737,-1581.09,0.00020821,2]
[387525820,1758754263746,-3133.48,0.00020821,2]
[387525822,1758754263756,-480.0,0.00020821,2]
[387525824,1758754263766,-1359.8,0.00020821,2]
[387525826,1758754263775,-480.0,0.00020821,2]
[387525828,1758754263785,-480.0,0.00020821,2]
[387525830,1758754263795,-1107.55,0.00020821,2]
[387525832,1758754263804,-607.09,0.00020821,2]
[387525834,1758754263814,-480.0,0.00020821,2]
[387525836,1758754263823,-276.04,0.00020821,2]
[387525838,1758754263833,-480.0,0.00020821,2]
[387525840,1758754263842,-572.6,0.00020821,2]
[387525841,1758754263852,-1379.5,0.00020821,2]
[387525844,1758754263861,-480.0,0.00020821,2]
[387525845,1758754263871,-1193.3,0.00020821,2]
[387525847,1758754263880,-480.0,0.00020821,2]
[387525850,1758754263890,-480.0,0.00020821,2]
[387525852,1758754263900,-480.0,0.00020821,2]
[387525853,1758754263909,-480.0,0.00020821,2]
[387525855,1758754263919,-617.62,0.00020821,2]
[387525857,1758754263928,-619.59,0.00020821,2]
[387525859,1758754263937,-480.0,0.00020821,2]
[387525861,1758754263947,-714.64,0.00020821,2]
[387525864,1758754263956,-638.47,0.00020821,2]
[387525865,1758754263966,-575.14,0.00020821,2]
[387525868,1758754263975,-771.56,0.00020821,2]
[387525869,1758754263985,-480.0,0.00020821,2]
[387525871,1758754263995,-578.62,0.00020821,2]
[387525873,1758754264004,-480.0,0.00020821,2]
[387525876,1758754264015,-1587.46,0.00020821,2]
[387525877,1758754264024,-636.7,0.00020821,2]
[387525880,1758754264034,-2076.9,0.00020821,2]
[387525882,1758754264044,-480.0,0.00020821,2]
[387525883,1758754264053,-480.0,0.00020821,2]
[387525885,1758754264063,-480.0,0.00020821,2]
[387525887,1758754264072,-601.23,0.00020821,2]
[387525889,1758754264082,-892.44,0.00020821,2]
[387525891,1758754264091,-434.62658245,0.00020821,2]
[387525893,1758754264102,-1552.27,0.00020821,2]
[387525895,1758754264112,-1187.23,0.00020821,2]
[387525897,1758754264121,-480.0,0.00020821,2]
[387525899,1758754264131,-480.0,0.00020821,2]
[387525902,1758754264141,-480.0,0.00020821,2]
[387525903,1758754264151,-480.0,0.00020821,2]
[387525905,1758754264160,-480.0,0.00020821,2]
[387525907,1758754264170,-480.0,0.00020821,2]
[387525909,1758754264179,-508.19,0.00020821,2]
[387525911,1758754264189,-355.21500347,0.00020821,2]
[387525913,1758754264199,-500.0,0.00020822,2]
[387525915,1758754264209,-500.0,0.00020822,2]
[387525918,1758754264219,-1500.0,0.00020868,2]
[387525919,1758754264229,-500.0,0.00020873,2]
[387525922,1758754264240,-575.25942439,0.00020873,2]
[387525924,1758754264250,-420.0,0.00020893,2]
[387525925,1758754264259,-1680.0,0.00020896,2]
[387525928,1758754264269,-2000.0,0.00020916,2]
[387525930,1758754264279,-3238.26353196,0.00020972,2]
[387525931,1758754264288,-1680.0,0.00020995,2]
[387525933,1758754264298,-480.0,0.00021095,2]
[387525935,1758754264307,-480.0,0.00021095,2]
[387525937,1758754264317,-480.0,0.00021095,2]
[387525938,1758754264326,-480.0,0.00021095,2]
[387525939,1758754264335,-480.0,0.00021095,2]
[387525940,1758754264345,-211.83721234,0.00021095,2]
[387525941,1758754264355,-480.0,0.00021095,2]
[387525942,1758754264365,-480.0,0.00021095,2]
[387525943,1758754264374,-480.0,0.00021095,2]
[387525944,1758754264383,-480.0,0.00021095,2]
[387525945,1758754264393,-480.0,0.00021095,2]
[387525946,1758754264402,-735.57,0.00021095,2]
[387525947,1758754264412,-523.78,0.00021095,2]
[387525948,1758754264422,-532.0,0.00021095,2]
[387525949,1758754264432,-480.0,0.00021095,2]
[387525950,1758754264442,-480.0,0.00021095,2]
[387525951,1758754264452,-480.0,0.00021095,2]
[387525953,1758754264463,-605.4,0.00021095,2]
[387525955,1758754264472,-480.0,0.00021095,2]
[387525957,1758754264482,-480.0,0.00021095,2]
[387525959,1758754264493,-728.49,0.00021095,2]
[387525961,1758754264503,-480.0,0.00021095,2]
[387525963,1758754264512,-480.0,0.00021095,2]
[387525965,1758754264522,-480.0,0.00021095,2]